Cogmind - Beta 16 @@@ ROGUE MODE // 2025.10.26 @ 19:07:01 Player: weras Result: Self-destructed Performance ------------- Evolutions (0) 0 Regions Visited (4) 800 Robots Destroyed (8) 40 Value Destroyed (122) 122 Prototype IDs (24) 480 Alien Tech Used (0) 0 Bonus (284) 284 TOTAL SCORE: 1726 Bonus ------- Aligned with FarCom 300 Friendly Fire -16 Cogmind --------- Core Integrity 197/250 Matter 263/300 Energy 250/250 System Corruption 6% Temperature Cool (50) Movement Rolling (130) Ox2 Location -9/Mines Parts ------- > --- POWER (1) -------- Ion Engine > --- PROPULSION (2) --- Compact Wheel > --- UTILITY (2) ------ High-capacity Storage Unit > --- WEAPON (2) ------- Light Assault Rifle > --- INVENTORY (20) --- Wheel Heat Sink Light Armor Plating Improved Medium Laser Improved Medium Laser Improved Medium Laser Autogun Autogun Autogun Autogun XL Autogun Array Hammer Peak State ------------ > --- POWER ------------ Ion Engine > --- PROPULSION ------- Wheel Compact Wheel > --- UTILITY ---------- High-capacity Storage Unit Light Armor Plating > --- WEAPON ----------- Assault Rifle Light Assault Rifle > --- INVENTORY -------- Wheel Heat Sink Light Armor Plating Improved Medium Laser Improved Medium Laser Improved Medium Laser Autogun Autogun Autogun Autogun XL Autogun Array Hammer [Rating: 12] Favorites ----------- Power Light Ion Engine Engine Light Ion Engine Propulsion Compact Wheel Wheel Compact Wheel Utility High-capacity Storage Unit Storage High-capacity Storage Unit Protection Light Armor Plating Weapon Light Assault Rifle Energy Gun Improved Medium Laser Ballistic Gun Light Assault Rifle Build | -11 -10 -10 -10 -9 ------- Run | Yrd Mat Min Exi Min Slots Evolved . | . . . . . Power . | . . . . . Propulsion . | . . . . . Utility . | . . . . . Weapon . | . . . . . Parts Attached 12 | 6 6 . . . Power 2 | 1 1 . . . Engine 2 | 1 1 . . . Core . | . . . . . Reactor . | . . . . . Propulsion 4 | 2 2 . . . Treads . | . . . . . Leg . | . . . . . Wheel 4 | 2 2 . . . Hover . | . . . . . Flight . | . . . . . Utility 3 | 1 2 . . . Device . | . . . . . Storage 2 | 1 1 . . . Processor . | . . . . . Hackware . | . . . . . Protection 1 | . 1 . . . Artifact . | . . . . . Weapon 3 | 2 1 . . . Energy Gun 1 | . 1 . . . Energy Cannon . | . . . . . Ballistic Gun 2 | 2 . . . . Ballistic Cannon . | . . . . . Launcher . | . . . . . Special Weapon . | . . . . . Impact Weapon . | . . . . . Slashing Weapon . | . . . . . Piercing Weapon . | . . . . . Special Melee Weapon . | . . . . . Unidentified Prototypes 1 | . 1 . . . Parts Lost 5 | . 2 . . 3 Power 1 | . 1 . . . Propulsion 2 | . 1 . . 1 Utility 1 | . . . . 1 Weapon 1 | . . . . 1 Highest Loss Streak 3 | . 1 . . 3 To Critical Strikes . | . . . . . Average Backups 10 | . 9 11 13 12 Power . | . . . . . Propulsion 1 | . 1 1 1 1 Utility 1 | . 1 2 2 2 Weapon 6 | . 5 8 10 9 Tool/Special . | . . . . . Unused Backups 11 | . 1 . . 10 Power . | . . . . . Propulsion . | . . . . . Utility 2 | . . . . 2 Weapon 8 | . . . . 8 Tool/Special 1 | . 1 . . . Average Slot Usage (%) 89 | . 95 100 71 96 Engine 13 | . 13 14 14 14 Wheel 28 | . 28 28 28 28 Storage 14 | . 14 14 14 14 Protection 11 | . 10 14 14 14 Ballistic Gun 20 | . 27 28 . 24 Peak Build Rating 12 | 6 10 9 10 12 Average Rating 8 | 4 8 9 8 11 On Entrance 6 | . 6 8 9 10 Avg Prop Armor Cover (%) . | . . . . . Naked Turns . | . . . . . Heaviest Build 51 | 11 51 51 48 51 Greatest Support 32 | 20 32 26 26 26 Greatest Overweight (x) 3 | 1 3 1 1 1 Average Overweight (x) 1 | . 1 1 1 1 Largest Inventory Capacity 20 | 8 20 20 20 20 Average Capacity 19 | 7 19 20 20 20 Most Carried 17 | 1 14 11 17 16 Average Carried 10 | . 9 11 14 15 Final Capacity 20 | 8 20 20 20 20 Final Carried 17 | 1 12 11 17 15 Class Distribution -------------------- 100% | Mutant Dominant Class ---------------- Mutant | -10/Materials Mutant | -10/Mines Mutant | -10/Exiles Mutant | -9/Mines Resources | -11 -10 -10 -10 -9 ----------- Run | Yrd Mat Min Exi Min Matter Collected 435 | 215 220 . . . Remotely . | . . . . . Salvage Created 275 | . 275 . . . Parts 22 | . 22 . . . Haulers Intercepted 1 | . 1 . . . Recyclers Shooed 1 | . 1 . . . Parts Field Recycled . | . . . . . Retrieved Matter . | . . . . . Parts Self-Destructed . | . . . . . Prevented . | . . . . . Parts Restored . | . . . . . Kills | -11 -10 -10 -10 -9 ------- Run | Yrd Mat Min Exi Min Combat Hostiles Destroyed 5 | . 5 . . . Guns 5 | . 5 . . . Classes Destroyed 5 | . 5 . . . Hauler 1 | . 1 . . . Recycler 1 | . 1 . . . Watcher 1 | . 1 . . . Swarmer 3 | . 3 . . . Grunt 2 | . 2 . . . Best Kill Streak 2 | . 2 . . . Combat Bots Only 2 | . 2 . . . Max Kills in Single Turn 1 | . 1 . . . Gunslinging . | . . . . . Exploded . | . . . . . Melee . | . . . . . Uniques/NPCs Destroyed . | . . . . . Combat | -11 -10 -10 -10 -9 -------- Run | Yrd Mat Min Exi Min Hostile Shots Fired 59 | . 43 . . 16 Missed 15 | . 12 . . 3 Hits 44 | . 31 . . 13 Melee 5 | . . . . 5 Projectile 39 | . 31 . . 8 Part Disruptions 1 | . . . . 1 Damage Taken 529 | . 284 . . 245 Core 53 | . 41 . . 12 Absorbed by Shields . | . . . . . Core Remaining (%) 100 | 100 . . . . Volleys Fired 35 | . 31 . . 4 Largest 2 | . 2 . . 2 Hottest 40 | . 40 . . 40 Shots Fired 69 | . 62 . . 7 Gun 69 | . 62 . . 7 Cannon . | . . . . . Launcher . | . . . . . Special . | . . . . . Kinetic 69 | . 62 . . 7 Thermal . | . . . . . Explosive . | . . . . . Electromagnetic . | . . . . . Robot Hit Streak 6 | . 6 . . 2 Robot Miss Streak 6 | . 6 . . 2 Penetration Max . | . . . . . Secondary Targets 1 | . 1 . . . Max Gunslinging Chain 1 | . 1 . . . Shots Hit Robots 33 | . 30 . . 3 Core Hits 13 | . 12 . . 1 Critical Kills . | . . . . . Critical Parts Destroyed 1 | . 1 . . . Critical Strikes 1 | . 1 . . . Destroy 1 | . 1 . . . Melee Attacks . | . . . . . Impact . | . . . . . Slashing . | . . . . . Piercing . | . . . . . Sneak Attacks . | . . . . . Combat Hostiles . | . . . . . Follow-up Attacks . | . . . . . Damage Inflicted 427 | . 372 . . 55 Guns 427 | . 372 . . 55 Cannons . | . . . . . Explosions . | . . . . . Melee . | . . . . . Ramming . | . . . . . Kinetic 427 | . 372 . . 55 Thermal . | . . . . . Explosive . | . . . . . Electromagnetic . | . . . . . Impact . | . . . . . Slashing . | . . . . . Piercing . | . . . . . Highest Corruption 6 | . 1 1 1 6 Average Corruption 1 | . 1 1 1 1 Corruption Purged . | . . . . . Corruption Blocked . | . . . . . Effects 4 | . 1 . 2 1 Heat Flow Errors 2 | . . . 1 1 Data Loss (minor) 2 | . 1 . 1 . Overload Shots . | . . . . . Overflow Damage . | . . . . . Projectiles . | . . . . . Explosions . | . . . . . Melee . | . . . . . Knockbacks . | . . . . . Impact . | . . . . . Kinetic . | . . . . . Secondary . | . . . . . Self-Inflicted Damage . | . . . . . Shots . | . . . . . Rammed . | . . . . . Targets Rammed . | . . . . . Kicked . | . . . . . Crushed . | . . . . . Highest Temperature 199 | . 24 . 122 199 Average Temperature 27 | . 5 . 62 76 Received Heat Transfer 141 | . 81 . . 60 Siege Activations . | . . . . . Martial Activations . | . . . . . Shielding Activations . | . . . . . Robots Disrupted . | . . . . . Combat Hostiles . | . . . . . Robots Corrupted . | . . . . . Combat Hostiles . | . . . . . Parts Fried . | . . . . . Impact Corruptions . | . . . . . Robots Melted . | . . . . . Combat Hostiles . | . . . . . Parts Melted . | . . . . . Heat Transferred . | . . . . . Parts Sabotaged . | . . . . . Parts Stolen . | . . . . . Parts Stripped . | . . . . . Power Chain Reactions . | . . . . . Alert | -11 -10 -10 -10 -9 ------- Run | Yrd Mat Min Exi Min Maximum Alert Level . | . . . . . Low Security (%) 100 | 100 100 100 . 100 Level 1 . | . . . . . Level 2 . | . . . . . Level 3 . | . . . . . Level 4 . | . . . . . Level 5 . | . . . . . High Security . | . . . . . Max Security . | . . . . . Peak Influence 98 | . 98 31 . . Initial 31 | . . 31 . . Average 9 | . 9 31 . . Influence Increases 174 | . 174 . . . Destroy 0b10 Robot/C 100 | . 100 . . . Destroy 0b10 Robot/NC 15 | . 15 . . . Destroy Leader 14 | . 14 . . . Successful Hack 14 | . 14 . . . Destroy Structure 1 | . 1 . . . Lose Combat Pursuer 30 | . 30 . . . Influence Decreases 174 | . 94 49 31 . Entered New Map 80 | . . 49 31 . Time Decay 74 | . 74 . . . Lost Part 20 | . 20 . . . Squads Dispatched 1 | . 1 . . . Investigation . | . . . . . Extermination . | . . . . . Reinforcement 1 | . 1 . . . Assault . | . . . . . Garrison . | . . . . . Intercept . | . . . . . Searches Triggered . | . . . . . Construction Impeded . | . . . . . Haulers Reinforced . | . . . . . Active Scanning Responses . | . . . . . Cargo Convoy Interrupts . | . . . . . Stealth | -11 -10 -10 -10 -9 --------- Run | Yrd Mat Min Exi Min Distress Signals 1 | . 1 . . . Communications Jammed . | . . . . . Distress Signals . | . . . . . Times Spotted 29 | . 15 . . 14 Peak Tracking Total 19 | . 5 . . 19 Tactical Retreats 2 | . 1 . . 1 Traps | -11 -10 -10 -10 -9 ------- Run | Yrd Mat Min Exi Min Traps Triggered . | . . . . . Indirectly . | . . . . . Trap Hack Attempts . | . . . . . Triggered . | . . . . . Disarmed . | . . . . . Reprogrammed . | . . . . . Reused . | . . . . . Traps Extracted . | . . . . . Installed . | . . . . . Triggered . | . . . . . Machines | -11 -10 -10 -10 -9 ---------- Run | Yrd Mat Min Exi Min Machines Disabled . | . . . . . Max in Single Turn . | . . . . . Machines Repaired . | . . . . . Machines Dismantled . | . . . . . Machines Sabotaged . | . . . . . Overloaded Fab Kills . | . . . . . Hacking | -11 -10 -10 -10 -9 --------- Run | Yrd Mat Min Exi Min Machines Accessed 7 | . 5 . 2 . Terminals 5 | . 5 . . . Fabricators . | . . . . . Repair Stations . | . . . . . Recycling Units . | . . . . . Scanalyzers . | . . . . . Garrison Access . | . . . . . Total Hacks 15 | . 10 . 5 . Successful 6 | . 1 . 5 . Failed 9 | . 9 . . . Catastrophic 1 | . 1 . . . Database Lockouts . | . . . . . Manual 9 | . 8 . 1 . Terminals 10 | . 10 . . . Fabricators . | . . . . . Repair Stations . | . . . . . Recycling Units . | . . . . . Scanalyzers . | . . . . . Garrison Access . | . . . . . Terminal Hacks 6 | . 1 . 5 . Record 4 | . . . 4 . Robot Analysis 1 | . 1 . . . Proto ID Catalog 1 | . . . 1 . Fabricator Hacks . | . . . . . Repair Station Hacks . | . . . . . Recycling Unit Hacks . | . . . . . Scanalyzer . | . . . . . Garrison Access Hacks . | . . . . . Unauthorized Hacks . | . . . . . Terminals . | . . . . . Fabricators . | . . . . . Repair Stations . | . . . . . Recycling Units . | . . . . . Scanalyzers . | . . . . . Garrison Access . | . . . . . Data Cores Recovered . | . . . . . Used . | . . . . . Hacking Detections 5 | . 5 . . . Full Trace Events 2 | . 2 . . . Feedback Events 1 | . 1 . . . Corruption 1 | . 1 . . . Feedback Blocked . | . . . . . Robot Schematics Acquired . | . . . . . Robots Built . | . . . . . Authchips . | . . . . . Time . | . . . . . Total Robot Build Rating . | . . . . . Part Schematics Acquired . | . . . . . Parts Built . | . . . . . Authchips . | . . . . . Time . | . . . . . Total Part Build Rating . | . . . . . Part Studies Acquired . | . . . . . Parts Repaired . | . . . . . Time . | . . . . . Parts Recycled . | . . . . . Recycled Matter . | . . . . . Retrieved Matter . | . . . . . Retrieved Components . | . . . . . Parts Scanalyzed . | . . . . . Part Schematics Acquired . | . . . . . Parts Damaged . | . . . . . Bothacking | -11 -10 -10 -10 -9 ------------ Run | Yrd Mat Min Exi Min Used RIF Installer . | . . . . . Robots Hacked . | . . . . . Non-combat . | . . . . . Combat . | . . . . . Robot Hacks Applied . | . . . . . Relay Couplers Released . | . . . . . Fabnet Peak Effective % . | . . . . . Robots Rewired . | . . . . . Allies Hacked . | . . . . . Hacks Repelled . | . . . . . Allies | -11 -10 -10 -10 -9 -------- Run | Yrd Mat Min Exi Min Total Allies 2 | . . . . 2 Largest Group 2 | . . . . 2 Highest-Rated Group 41 | . . . . 41 Highest-Rated Ally 31 | . . . . 31 Total Orders . | . . . . . Ally Attacks 5 | . . . . 5 Total Damage 103 | . . . . 103 Kills 2 | . . . . 2 Allies Corrupted . | . . . . . Allies Melted . | . . . . . Intel | -11 -10 -10 -10 -9 ------- Run | Yrd Mat Min Exi Min Active Infowar (turns) . | . . . . . Robot Analysis Total 1 | . 1 . . . Derelict Logs Recovered . | . . . . . Drone Launches . | . . . . . Drone Recoveries . | . . . . . Exploration | -11 -10 -10 -10 -9 ------------- Run | Yrd Mat Min Exi Min Turns Passed 904 | 34 604 15 223 28 Spaces Moved 685 | 31 419 14 211 10 Core 1 | 1 . . . . Treads . | . . . . . Legs . | . . . . . Wheels 684 | 30 419 14 211 10 Hover . | . . . . . Flight . | . . . . . Fastest Speed 50 | 50 80 105 105 105 Average Speed 108 | 79 112 105 105 105 Slowest Speed 145 | 95 145 105 105 105 Overloaded Moves . | . . . . . Propulsion Burnouts . | . . . . . Robots Hopped . | . . . . . Potential Cave-ins . | . . . . . Cave-ins Triggered . | . . . . . Exploration Rate (%) 26 | 3 62 5 59 4 Regions Visited 4 Branch Regions 3 Pre-discovered Areas 1 | . . . 1 . Known Exits Taken . | . . . . . Unknown Exits Taken 4 | 1 1 1 1 . Scrap Searched . | . . . . . Spaces Dug . | . . . . . Terrain Destroyed . | . . . . . Melee . | . . . . . Projectile . | . . . . . AOE . | . . . . . Terrain Rammed . | . . . . . Walls Destroyed . | . . . . . Machines Disabled . | . . . . . Actions | -11 -10 -10 -10 -9 --------- Run | Yrd Mat Min Exi Min Total 781 | 37 496 14 213 21 Wait 29 | . 24 . . 5 Move 681 | 30 418 13 210 10 Hop . | . . . . . Pick Up 14 | 1 12 . 1 . Fast Attach 9 | 6 3 . . . Attach 4 | . 1 1 . 2 Detach 4 | . 2 . 2 . Swap 3 | . 3 . . . Drop 2 | . 2 . . . Fire 35 | . 31 . . 4 Melee . | . . . . . Ram . | . . . . . Kick . | . . . . . Crush . | . . . . . Escape Stasis . | . . . . . Rewire . | . . . . . Trap . | . . . . . Miscellaneous . | . . . . . Route ------- -11/Scrapyard -10/Materials (discovered 3 exits: [*Mat] / [*Min x2]) -10/Mines -10/Exiles -9/Mines History --------- Turn | Location | Event 11 | -11/Scrapyard | Discovered new exit (range 15) 35 | -11/Scrapyard | Entered Materials 185 | -10/Materials | Discovered new exit (range 16) 314 | -10/Materials | Build established: Mutant 429 | -10/Materials | Discovered new exit (range 14) 632 | -10/Materials | Discovered new exit (range 7) 639 | -10/Materials | Entered Mines 649 | -10/Mines | Deemed a non-threat by the Exiles lab entrance 650 | -10/Mines | Discovered new exit (range 5) 654 | -10/Mines | Entered Exiles 684 | -10/Exiles | Met 8R-AWN 699 | -10/Exiles | Met EX-HEX 727 | -10/Exiles | Met EX-BIN 739 | -10/Exiles | Aligned with FarCom system 741 | -10/Exiles | Given EX-Vault access code 768 | -10/Exiles | Opened EX-Vault 777 | -10/Exiles | Found XL Autogun Array 800 | -10/Exiles | Warned to stay clear of 0b10 Research branches 812 | -10/Exiles | Exiles lab attacked by MAIN.C 835 | -10/Exiles | Learned location of Zion (-7) 864 | -10/Exiles | Discovered new exit (range 14) 877 | -10/Exiles | Left Exiles lab with XL Autogun Array 877 | -10/Exiles | Entered Mines 878 | -9/Mines | Assembled infested the area 883 | -9/Mines | Assisted by a Guerilla fighting off Assembled 905 | -9/Mines | Self-destructed Last Messages --------------- ahead or try to find another way!" 00889_ X4-8FK(h) shuts down. 00892_ X4-8FK(h) suffers critical hit (Burn). 00893_ X4-8FK(h) heat spikes uncontrollably. 00893_ X4-8FK(h) critical meltdown. 00894_ ZX-C33: "Oh no, it's like what happened to the Exiles when they were wandering homeless, only there's no Warlord to save us!" 00894_ ZX-C33 destroyed. 00894_ as-43839 destroyed. 00896_ YK-6PK(z) knocked back. 00897_ MG-Z9M(g) heat damages Imp. Heat Sink, Lgt. Angular Momentum Engine. 00897_ MG-Z9M(g) destroyed. 00902_ YK-6PK(z) destroyed. 00902_ Lgt. Armor Plating destroyed. 00904_ Wheel destroyed. 00904_ Assault Rifle destroyed. 00904_ System corrupted by crushing effect (+5). 00904_ Knocked back. Map ----- +----------------------------------------------------+ | ??????????????????????????????????????? | | ??????????????????????????????????????? | | ??????????????????????????????????????? | | ??????????????????????????????????????? | | ??????????????????????????????????????? | | ??????????????????????????????????????? | | ??????????????????????????????????????? | | ??????????????????????????????????????? | | ??????????????????????????????????????? | | ?????????? ??????????????????????????? | | ?????????# ??????????????????????????? | | ?????????# ??????????????????????????? | | ?????????# ??????????????????????????? | | ?????????# ??????????????????????????? | | ?????????# ??????????????????????????? | | ????????## ??????????????????????????? | | ???????##; ##????????????????????????? | | ???????# %a #????????????????????????? | | ???????# ????????????????????????? | | ???????# a% ????????????????????????? | | ????????#]=a #????????????????????????? | | ?????????#a=a#????????????????????????? | | ??????????#aa####?????????????????????? | | ??????????# ##????????????????????? | | ??????????# aaa ##???????????????????? | | ??????????# a @ #???????????????????? | | ??????????# #???????????????????? | | ??????????### #???????????????????? | | ????????????## ##???????????????????? | | ?????????????#####????????????????????? | | ??????????????????????????????????????? | | ??????????????????????????????????????? | | | | | | | | | | | | | | | | | | | | | | | | | | | | | | | | | | | | | +----------------------------------------------------+ Best States ------------- Heat Dissipation 25 Energy Generation 10 Energy Capacity 250 Matter Stores 300 Matter Capacity 300 Sight Range 16 Terrain Scan Density 10 Armor Coverage 150 Evasion (%) 44 Item Schematics ----------------- None Robot Schematics ------------------ None Fabricated ------------ Nothing Repaired ---------- Nothing Studied --------- None Alien Tech Used ----------------- None Achievements -------------- None Challenges ------------ None Game ------ Seed CooledSwarmGravjet Manual? 0 Play Time 00:11:11 Cumulative 34.6 hours Start 2025.10.25 @ 22:28:05 End 2025.10.26 @ 19:07:01 Sessions 2 Manual Loads 0 Difficulty Rogue Special Mode None Game No. 37 Rogue 37 Adventurer 0 Explorer 0 Win Type - Total 0 Types 0/0/0/0/0/0/0/0/0/0 Lore% 22 Gallery% 25 Achievement% 18 Wizard Run 0 Options --------- Layout 1 ASCII 0 Keyboard 1 Movement Numpad Keybinds 0 Fullscreen 1 Font 24/Smallcaps Map View 50x35 Zoom Use 0% Tactical HUD 1 Map Filters NONE Filters NONE Steam 1 RUN: 046ec8ad-61cb-4b02-8787-2d9bc541c86d